Cogmind - Beta 11 X8 @@@ ROGUE MODE // 2022.02.07 @ 10:15:06 Player: tourn Result: Destroyed by X-87 Electro with Compact HERF Cannon Performance ------------- Evolutions (9) 4500 Regions Visited (21) 4200 Robots Destroyed (424) 2120 Value Destroyed (26530) 26530 Prototype IDs (15) 300 Alien Tech Used (0) 0 Bonus (11628) 11628 TOTAL SCORE: 49278 Bonus ------- Triggered High Security 500 High Alert Combat Kills 5560 Follower Combat Kills 1419 Entered Garrisons 1200 Used RIF Installer 3000 Scanned by Researcher 500 Friendly Fire -551 Cogmind --------- Core Integrity 0/1600 Matter 290/300 Energy 100/100 System Corruption 10% Temperature Cool (0) Movement Core (50) Location -1/Access Parts ------- > --- POWER (2) -------- (None) > --- PROPULSION (6) --- (None) > --- UTILITY (14) ----- (None) > --- WEAPON (3) ------- (None) > --- INVENTORY (5) ---- Relay Coupler [Sentry] (21) Relay Coupler [Demolisher] (26) Enhanced Nova Cannon Fusion Bomb Launcher Advanced Remote Datajack Peak State ------------ > --- POWER ------------ Quantum Reactor Improved Quantum Reactor > --- PROPULSION ------- Armored Heavy Treads Armored Heavy Treads Biometal Heavy Treads > --- UTILITY ---------- Experimental Power Amplifier Advanced Heat Sink Huge Storage Unit Advanced Target Analyzer Advanced Core Analyzer Armor Integrity Analyzer Advanced Powered Armor Advanced Powered Armor Improved Thermal Shield Relay Coupler [Swarmer] Relay Coupler [Grunt] Relay Coupler [Sentry] Relay Coupler [Hunter] Relay Coupler [Behemoth] > --- WEAPON ----------- Gamma Rifle Enhanced Nova Cannon Railgun > --- INVENTORY -------- Quantum Reactor Medium Treads Advanced Medium Treads Armored Heavy Treads Matter Filter Antimissile System Relay Coupler [NC] Relay Coupler [Swarmer] Relay Coupler [Grunt] Relay Coupler [Brawler] Relay Coupler [Sentry] Relay Coupler [Demolisher] Relay Coupler [Demolisher] Relay Coupler [Hunter] Relay Coupler [Hunter] Relay Coupler [Hunter] Improved Dynamic Insulation System Gamma Rifle Enhanced Quantum Rifle HERF Cannon Fusion Bomb Launcher Advanced Remote Datajack Advanced Remote Datajack Power Sword [Rating: 183] Favorites ----------- Power Quantum Reactor Engine Light Angular Momentum Engine Power Core Micro Fission Core Reactor Quantum Reactor Propulsion Carbon-fiber Leg Treads Improved Heavy Treads Leg Carbon-fiber Leg Wheel Armored Wheel Hover Unit Improved Antigrav System Flight Unit VTOL Module Utility Huge Storage Unit Device Advanced Heat Sink Storage Huge Storage Unit Processor Improved Targeting Computer Hackware Relay Coupler [Sentry] Protection Improved Medium Armor Plating Weapon Railgun Energy Gun Precision Beam Rifle Energy Cannon Nova Cannon Ballistic Gun Railgun Ballistic Cannon Flak Cannon Launcher Rocket Launcher Special Weapon Improved Remote Datajack Slashing Weapon Katana Piercing Weapon Heavy Pick Build | -11 -10 -10 -10 -9 -8 -8 -8 -8 -6 -6 -6 -6 -5 -5 -4 -4 -3 -3 -2 -2 -1 ------- Run | Scr Mat Min Exi Min Mat Sto Gar Rec Fac Gar Fac Gar Fac Gar Fac Gar Res Arm Res Gar Acc Slots Evolved 18 | . . . . . 4 . . . 4 . . . 2 . 2 . 2 . 2 . 2 Power 1 | . . . . . . . . . . . . . . . . . . . 1 . . Propulsion 4 | . . . . . 2 . . . 1 . . . . . 1 . . . . . . Utility 12 | . . . . . 2 . . . 3 . . . 2 . 1 . 2 . . . 2 Weapon 1 | . . . . . . . . . . . . . . . . . . . 1 . . Parts Attached 837 | . 14 3 . 11 14 11 19 4 12 18 23 54 41 31 91 72 123 113 34 43 106 Power 50 | . 2 . . 2 . 1 2 1 1 1 3 . 3 . 6 3 5 9 2 4 5 Engine 9 | . 1 . . 2 . . . . 1 1 1 . 1 . 2 . . . . . . Core 9 | . 1 . . . . 1 2 1 . . 2 . 1 . 1 . . . . . . Reactor 32 | . . . . . . . . . . . . . 1 . 3 3 5 9 2 4 5 Propulsion 213 | . 5 . . 1 6 1 6 2 2 6 10 15 10 10 37 29 16 30 8 5 14 Treads 66 | . 3 . . . 1 . . . . . 1 . . 1 10 7 9 11 4 5 14 Leg 125 | . 1 . . . 5 1 6 2 2 3 6 15 10 9 19 18 7 17 4 . . Wheel 14 | . 1 . . 1 . . . . . . 3 . . . 5 4 . . . . . Hover 4 | . . . . . . . . . . . . . . . 3 . . 1 . . . Flight 4 | . . . . . . . . . . 3 . . . . . . . 1 . . . Utility 276 | . 4 1 . . 3 6 3 1 5 3 6 16 14 12 22 17 48 38 11 21 45 Device 111 | . 2 1 . . 2 1 . . 2 1 1 7 4 1 10 7 20 10 5 8 29 Storage 15 | . 1 . . . . . 1 . 1 . 1 . 1 . . . . 6 . 3 1 Processor 25 | . 1 . . . 1 . . . 1 1 3 . . . 3 2 4 3 2 1 3 Hackware 61 | . . . . . . . . 1 . 1 . 9 6 4 7 7 11 3 . 5 7 Protection 64 | . . . . . . 5 2 . 1 . 1 . 3 7 2 1 13 16 4 4 5 Artifact . | . . . . . . . . . . . . . . . . . . . . . . Weapon 298 | . 3 2 . 8 5 3 8 . 4 8 4 23 14 9 26 23 54 36 13 13 42 Energy Gun 65 | . 2 2 . 3 2 1 4 . 1 4 . 2 . 2 6 5 5 12 . 3 11 Energy Cannon 24 | . . . . . 1 . . . . . . . . . 4 1 3 6 . 1 8 Ballistic Gun 92 | . . . . 2 . . . . 2 1 3 9 9 4 6 5 21 7 7 6 10 Ballistic Cannon 11 | . . . . . 1 1 1 . . . . . . . 2 . 2 1 2 . 1 Launcher 20 | . . . . 3 . 1 3 . . 2 . 3 1 . 1 1 . 4 . 1 . Special Weapon 54 | . 1 . . . . . . . . . . 7 2 2 3 8 15 4 1 2 9 Impact Weapon . | . . . . . . . . . . . . . . . . . . . . . . Slashing Weapon 18 | . . . . . 1 . . . 1 1 1 2 2 1 4 . . . 2 . 3 Piercing Weapon 14 | . . . . . . . . . . . . . . . . 3 8 2 1 . . Special Melee Weapon . | . . . . . . . . . . . . . . . . . . . . . . Unidentified Prototypes 13 | . . . . . . 1 . . . . . . 1 . 2 . 3 2 1 . 3 Corrupted Parts 4 | . . . . . . . . 1 . . . . . . 1 . 2 . . . . System Corruption 26 | . . . . . . . . 2 . . . . . . 10 . 14 . . . . Parts Lost 245 | . 3 1 . 3 3 2 5 . 1 11 11 5 11 11 37 12 19 47 12 17 34 Power 27 | . . . . 1 . 1 . . . 1 2 . 3 . 4 2 3 4 1 2 3 Propulsion 85 | . 1 . . 1 1 . 3 . 1 6 7 . 3 5 17 5 6 16 1 4 8 Utility 84 | . . . . . 1 1 1 . . 3 2 3 3 5 9 2 7 19 9 7 12 Weapon 49 | . 2 1 . 1 1 . 1 . . 1 . 2 2 1 7 3 3 8 1 4 11 Highest Loss Streak 14 | . 2 1 . 2 1 1 3 . 1 5 5 4 3 3 13 4 9 14 6 5 11 Average Slot Usage (%) 91 | . 99 100 100 100 99 99 100 100 100 91 91 96 95 97 95 90 92 78 77 81 87 Engine 1 | . 4 . . 8 9 5 . . 5 5 4 . . . 1 . . . . . . Core 2 | . 9 14 14 6 . 3 9 9 . . 1 6 3 5 1 . . . . . . Reactor 2 | . . . . . . . . . . . . . 1 . 2 4 3 3 7 7 7 Treads 9 | . 22 28 28 16 . . . . . . . . . 2 9 12 13 12 10 14 14 Leg 14 | . . . . . 35 36 36 36 33 21 26 32 28 25 17 3 11 9 4 . . Wheel 1 | . 4 . . 11 . . . . . . 2 . . . 1 6 . . . . . Device 9 | . 1 14 14 14 18 11 9 9 8 15 6 12 8 5 4 10 9 5 9 16 10 Storage 6 | . 22 14 14 14 9 9 9 9 6 6 6 6 4 5 5 5 4 6 6 4 3 Processor 10 | . 3 . . . 9 9 9 9 13 13 14 13 11 11 6 9 7 10 16 13 13 Hackware 13 | . . . . . . . . . 3 . 6 8 19 17 29 23 22 10 . 8 19 Protection 4 | . . . . . . 6 9 9 13 3 4 1 3 8 3 2 7 7 7 2 5 Energy Gun 5 | . 15 26 28 21 8 8 14 18 9 12 1 2 . 2 1 2 . 3 . 3 2 Ballistic Gun 4 | . 6 . . 4 . . . . 3 . 10 6 5 5 1 4 3 2 7 4 7 Special Weapon 1 | . 6 1 . . . . . . . . . 2 2 1 2 2 2 . . . . Naked Turns 54 | . . . . . . . . . . . . . . . . . . 15 . . 39 Heaviest Build 189 | 11 33 30 30 37 40 42 99 99 73 73 97 94 117 116 131 123 139 160 178 181 189 Greatest Support 225 | 20 40 40 40 40 45 45 52 57 69 69 75 95 88 88 143 220 215 215 225 225 211 Greatest Overweight (x) 9 | . 3 . . 2 1 . 1 1 1 1 8 1 1 1 9 6 1 4 1 . 1 Average Overweight (x) . | . . . . 1 . . . 1 . . 1 . . 1 1 . . . . . . Largest Inventory Capacity 25 | . 15 15 15 15 15 15 25 25 25 20 20 20 25 25 25 25 25 25 25 25 25 Average Capacity 22 | . 14 15 15 15 15 15 19 25 20 20 20 20 19 25 25 25 25 21 25 25 24 Most Carried 25 | . 15 15 15 15 15 15 25 25 24 20 20 20 25 25 25 25 25 25 25 25 25 Average Carried 21 | . 9 14 15 14 14 14 17 24 19 18 19 19 16 23 23 24 24 18 22 23 23 Final Capacity 25 | 8 15 15 15 15 15 15 25 25 20 20 20 20 25 25 25 25 25 25 25 25 5 Final Carried 25 | 6 15 15 15 15 15 15 25 25 20 20 20 20 23 25 20 25 25 15 23 25 5 Class Distribution -------------------- 37% | Botlord-Mutant 29% | Scavenger-Mutant 12% | Bothacker-Mutant 8% | Mutant 6% | Botlord-Gunner Dominant Class ---------------- Mutant | -10/Materials Mutant | -10/Mines Mutant | -10/Exiles Scavenger-Mutant | -9/Mines Scavenger-Mutant | -8/Materials Scavenger-Mutant | -8/Storage Scavenger-Mutant | -8/Garrison Scavenger-Mutant | -8/Recycling Commander-Mutant | -6/Factory Scavenger-Mutant | -6/Garrison Scavenger-Mutant | -6/Factory Bothacker-Mutant | -6/Garrison Bothacker-Mutant | -5/Factory Scavenger-Mutant | -5/Garrison Botlord-Mutant | -4/Factory Botlord-Mutant | -4/Garrison Botlord-Mutant | -3/Research Scavenger-Mutant | -3/Armory Scavenger-Mutant | -2/Research Bothacker-Gunner | -2/Garrison Botlord-Mutant | -1/Access Resources | -11 -10 -10 -10 -9 -8 -8 -8 -8 -6 -6 -6 -6 -5 -5 -4 -4 -3 -3 -2 -2 -1 ----------- Run | Scr Mat Min Exi Min Mat Sto Gar Rec Fac Gar Fac Gar Fac Gar Fac Gar Res Arm Res Gar Acc Matter Collected 18807 | 192 148 50 . 114 325 194 479 10 158 325 729 1247 695 889 1617 1517 3300 1620 1014 1123 3061 Remotely . | . . . . . . . . . . . . . . . . . . . . . . Salvage Created 24634 | . 497 251 . 266 557 412 422 70 264 532 1408 927 938 706 1101 1047 3093 3412 988 2343 5400 Parts 1110 | . 23 19 . 20 24 23 29 3 12 23 59 22 35 32 58 44 172 138 57 88 229 Haulers Intercepted 6 | . 1 . . . 2 . . . . . 1 . . . . . 1 . . . 1 Recyclers Shooed 12 | . 1 . . . . 1 . . . . . . 2 . 2 . 5 . . . 1 Parts Field Recycled . | . . . . . . . . . . . . . . . . . . . . . . Retrieved Matter . | . . . . . . . . . . . . . . . . . . . . . . Parts Self-Destructed . | . . . . . . . . . . . . . . . . . . . . . . Prevented . | . . . . . . . . . . . . . . . . . . . . . . Kills | -11 -10 -10 -10 -9 -8 -8 -8 -8 -6 -6 -6 -6 -5 -5 -4 -4 -3 -3 -2 -2 -1 ------- Run | Scr Mat Min Exi Min Mat Sto Gar Rec Fac Gar Fac Gar Fac Gar Fac Gar Res Arm Res Gar Acc Combat Hostiles Destroyed 354 | . 8 2 . 10 10 11 18 . 4 23 15 14 7 13 17 14 38 52 10 29 59 Melee 6 | . . . . . . . . . . . . . . . . 2 1 . 3 . . Guns 223 | . 8 2 . 3 4 2 7 . 4 7 14 11 7 13 6 11 32 24 7 14 47 Cannons 43 | . . . . . 5 8 3 . . . . . . . 8 . 1 8 . 9 1 AOE 55 | . . . . 7 . 1 8 . . 16 . . . . 3 . . 15 . 4 1 Classes Destroyed 21 | . 3 3 . 1 1 2 1 . . 1 2 1 . 1 1 1 . 2 . 1 . Worker 20 | . . 3 . 1 1 . . . . . 3 . 1 . 2 . 4 . 4 . 1 Builder 12 | . . 2 . 1 . 1 . . . . . . . . 1 . 1 . 4 . 2 Tunneler 6 | . . 2 . . . . . . . . . . . . 1 . 1 . 1 . 1 Hauler 6 | . 1 . . . 2 . . . . . 1 . . . . . 1 . . . 1 Recycler 15 | . 1 . . . 1 2 . 1 . . 1 . 3 . 1 . 2 . 1 . 2 Carrier 1 | . . . . . . . . . . . . . . . . . . . . 1 . Mechanic 2 | . . . . . . . . . . . 1 . . . 1 . . . . . . Watcher 9 | . . . . . . 1 . . . . . . . . 1 . 1 1 . . 5 Swarmer 55 | . . . . 7 1 3 8 . . 16 . . . 5 1 1 5 . . 4 4 Saboteur 2 | . . . . . . . . . . . . . . . . . . 2 . . . Grunt 130 | . 8 2 . 4 5 2 4 . 1 5 11 12 2 5 2 5 6 16 2 14 24 Brawler 10 | . . . . . . . . . . . . 2 . 1 . . 2 1 . 1 3 Duelist 13 | . . . . . . . . . . 2 1 . . . . . 1 7 . 1 1 Protector 1 | . . . . . . . . . . . . . . . . . . 1 . . . Sentry 35 | . . . . . 4 5 4 . 2 . 1 . . . 1 . 1 4 1 5 7 Demolisher 4 | . . . . . . . . . . . . . . . . 1 . 3 . . . Specialist 8 | . . . . . . . 1 . . . . . 4 . 1 . . 2 . . . Hunter 24 | . . . . . . 1 1 . 1 . . . 1 1 2 3 6 4 2 . 2 Programmer 71 | . . . . . . . . . . . 2 1 . . 9 3 17 12 5 3 19 Behemoth 3 | . . . . . . . . . . . . . . 1 . 1 . . . 1 . Striker 1 | . . . . . . . . . . . . . . . 1 . . . . . . Best Kill Streak 17 | . 4 1 . 4 3 4 4 1 2 17 3 4 2 3 3 3 5 6 3 7 6 Combat Bots Only 17 | . 3 1 . 4 3 3 4 . 2 17 3 4 2 3 3 3 4 6 2 7 6 Max Kills in Single Turn 4 | . 1 1 . 3 1 1 4 1 1 4 1 1 1 1 2 2 2 3 2 2 2 Gunslinging 1 | . . . . . . . . . . . . . . . . 1 . . . . . Exploded 4 | . . . . 3 . 1 4 . . 4 . . . . 1 . . 3 . 2 1 Melee 1 | . . . . . . . . . . . . . . . . 1 1 . 1 . . Uniques/NPCs Destroyed . | . . . . . . . . . . . . . . . . . . . . . . Combat | -11 -10 -10 -10 -9 -8 -8 -8 -8 -6 -6 -6 -6 -5 -5 -4 -4 -3 -3 -2 -2 -1 -------- Run | Scr Mat Min Exi Min Mat Sto Gar Rec Fac Gar Fac Gar Fac Gar Fac Gar Res Arm Res Gar Acc Damage Taken 59766 | . 579 197 . 405 538 373 964 . 459 1152 1404 1210 1685 1904 6089 2646 6556 11253 5771 4085 12496 Core 5193 | . 52 28 . 79 61 35 73 . 45 234 123 208 240 168 660 152 312 616 264 230 1613 Absorbed by Shields 4647 | . . . . . . . . . 39 . . . . . 32 294 154 30 438 366 3294 Reduced by Siege Mode 627 | . . . . . . . . . . . . . . . . 63 78 117 27 137 205 Core Remaining (%) 51 | 100 . . . 36 . . . 69 . . . 28 . 59 . 29 . 28 . 65 . Volleys Fired 1812 | . 43 18 . 22 44 26 51 2 13 38 81 117 60 81 155 104 269 248 49 112 279 Largest 3 | . 2 2 . 2 2 2 2 1 2 2 2 2 2 2 2 2 2 2 3 3 3 Hottest 260 | . 140 140 . 85 116 107 122 61 122 122 122 136 66 109 162 146 129 185 99 253 260 Shots Fired 3100 | . 75 36 . 38 88 49 81 2 26 68 157 168 87 140 202 158 369 346 115 277 618 Gun 2427 | . 71 35 . 32 44 23 56 2 26 60 157 134 61 131 81 120 283 257 109 197 548 Cannon 364 | . . . . . 44 23 19 . . . . . . . 83 8 24 56 5 67 35 Launcher 53 | . . . . 6 . 3 6 . . 8 . 3 3 . 6 2 . 10 . 6 . Special 256 | . 4 1 . . . . . . . . . 31 23 9 32 28 62 23 1 7 35 Kinetic 1613 | . 30 . . 2 24 23 19 . 14 2 129 72 61 116 89 69 266 80 114 113 390 Thermal 922 | . 35 19 . 16 64 23 56 2 12 58 28 62 . 15 53 51 13 190 . 127 98 Explosive 48 | . . . . 6 . 3 6 . . 8 . 3 3 . 6 . . 7 . 6 . Electromagnetic 275 | . 10 17 . 14 . . . . . . . . . . 22 19 28 46 . 24 95 Robot Hit Streak 40 | . 16 7 . 12 27 17 25 2 13 14 33 30 18 12 24 15 32 40 24 30 35 Robot Miss Streak 8 | . 2 6 . 4 6 5 4 . 1 2 4 4 2 3 4 8 5 4 5 5 4 Penetration Max 2 | . . . . . . . . . 1 . 2 1 2 2 1 1 1 1 1 . 2 Secondary Targets 21 | . 1 . . 1 . . . . . 1 2 . . 2 . 1 6 1 3 1 2 Max Gunslinging Chain 1 | . 1 . . 1 . . . . . 1 1 . . 1 . 1 1 1 1 1 1 Shots Hit Robots 2262 | . 56 24 . 24 79 44 59 2 18 43 118 113 73 84 133 104 286 267 98 188 449 Core Hits 1013 | . 24 15 . 18 35 40 38 1 11 39 60 50 24 33 46 34 99 120 43 91 192 Critical Kills 56 | . . . . . . . . . 2 . 13 5 8 3 1 2 5 . 2 7 8 Critical Parts Destroyed 87 | . . . . . . . . . . . 21 10 6 8 1 1 12 1 10 . 17 Critical Strikes 192 | . 3 . . . . 2 4 . 3 2 38 25 17 13 2 6 18 2 13 10 34 Burn 26 | . 2 . . . . 2 4 . 1 2 3 10 . . . 2 . . . . . Meltdown 3 | . . . . . . . . . . . . . . . . . . . . 2 1 Destroy 152 | . . . . . . . . . 2 . 35 15 17 13 2 3 17 1 13 8 26 Corrupt 11 | . 1 . . . . . . . . . . . . . . 1 1 1 . . 7 Melee Attacks 123 | . . . . . . . . . 2 1 10 4 21 3 6 3 27 4 31 . 11 Impact . | . . . . . . . . . . . . . . . . . . . . . . Slashing 71 | . . . . . . . . . 2 1 10 4 21 3 6 . . . 13 . 11 Piercing 52 | . . . . . . . . . . . . . . . . 3 27 4 18 . . Sneak Attacks 15 | . . . . . . . . . . . . . 2 . . 1 2 . 7 . 3 Combat Hostiles 2 | . . . . . . . . . . . . . . . . 1 1 . . . . Follow-up Attacks 1 | . . . . . . . . . . . . . . . . . . . 1 . . Damage Inflicted 57801 | . 626 278 . 954 1303 1195 1552 33 247 2051 1365 1496 759 1288 3790 2175 7605 9324 3306 6177 12277 Guns 40283 | . 602 278 . 301 606 336 669 32 247 645 1220 1217 465 1288 1706 1806 6836 5620 2122 3376 10911 Cannons 7866 | . . . . . 697 371 373 . . . . . . . 1345 35 440 1831 . 2221 553 Explosions 6915 | . . . . 653 . 488 510 . . 1406 145 279 . . 708 . . 1873 . 580 273 Melee 2389 | . . . . . . . . . . . . . 294 . . 205 265 . 1177 . 448 Ramming 195 | . . . . . . . . 1 . . . . . . 31 . 64 . 7 . 92 Kinetic 26004 | . 182 . . 7 384 371 373 . 58 . 794 264 465 1190 1704 1084 6476 1600 2122 1426 7504 Thermal 18293 | . 312 116 . 130 919 336 669 32 189 645 571 953 . 98 1307 744 229 5108 . 3618 2317 Explosive 5682 | . . . . 629 . 488 510 . . 1406 . 279 . . 549 . . 1241 . 580 . Electromagnetic 5238 | . 132 162 . 188 . . . . . . . . . . 199 142 571 1375 . 553 1916 Impact . | . . . . . . . . . . . . . . . . . . . . . . Slashing 1533 | . . . . . . . . . . . . . 294 . . . . . 791 . 448 Piercing 856 | . . . . . . . . . . . . . . . . 205 265 . 386 . . Highest Corruption 63 | . . . . . 2 3 3 5 . . . 1 1 1 27 25 41 63 8 17 9 Average Corruption 14 | . . . . . 2 2 3 3 . . . 1 1 1 13 24 23 51 4 11 2 Corruption Purged 15 | . . . . . . . . . . . . . . . 5 . . . . . 10 Effects 735 | . . . . . 8 5 28 16 . . . 10 . 8 90 119 177 163 14 60 37 Message Errors 193 | . . . . . 3 1 13 3 . . . 5 . 4 25 28 45 39 4 11 12 Matter Fused 161 | . . . . . . . 7 6 . . . . . . 21 38 34 26 3 20 6 Heat Flow Errors 81 | . . . . . 2 1 4 2 . . . . . . 15 7 18 17 1 7 7 Energy Discharges 85 | . . . . . 1 2 2 1 . . . 5 . 2 11 13 19 15 3 5 6 Parts Rejected 8 | . . . . . . . . . . . . . . . 1 2 3 2 . . . Data Loss (minor) 77 | . . . . . 2 1 1 4 . . . . . 2 7 13 17 16 3 7 4 Data Loss (major) 31 | . . . . . . . . . . . . . . . 2 4 14 6 . 4 1 Misfires 22 | . . . . . . . . . . . . . . . 3 4 7 5 . 3 . Alerts 14 | . . . . . . . . . . . . . . . 2 4 4 4 . . . Misdirections 8 | . . . . . . . . . . . . . . . . 2 1 5 . . . Weapon Failures 55 | . . . . . . . 1 . . . . . . . 3 4 15 28 . 3 1 Overload Shots 12 | . . . . . . . . . . . . . . . . . . 12 . . . Effects 2 | . . . . . . . . . . . . . . . . . . 2 . . . Energy Bleed 1 | . . . . . . . . . . . . . . . . . . 1 . . . Meltdown 1 | . . . . . . . . . . . . . . . . . . 1 . . . Overflow Damage 1079 | . . . . 1 1 38 18 . . 75 . . 66 . 105 . 109 94 284 136 152 Projectiles 98 | . . . . . 1 . . . . . . . . . 59 . 16 . . 18 4 Explosions 390 | . . . . 1 . 38 18 . . 75 . . . . 46 . . 94 . 118 . Melee 591 | . . . . . . . . . . . . . 66 . . . 93 . 284 . 148 Knockbacks 37 | . . . . . 18 10 3 . . . . . . . 5 . . . . . 1 Impact 1 | . . . . . . . . . . . . . . . . . . . . . 1 Kinetic 35 | . . . . . 17 10 3 . . . . . . . 5 . . . . . . Secondary 1 | . . . . . 1 . . . . . . . . . . . . . . . . Self-Inflicted Damage 1430 | . . . . 68 . 93 95 . . 29 . 69 . . 75 9 . 534 . 380 78 Shots 29 | . . . . 2 . 2 2 . . 1 . 1 . . 1 1 . 12 . 6 1 Rammed 11 | . . . . . . . . . . . . . . . 2 . 1 . 1 . 7 Targets Rammed 14 | . . . . . . . . 1 . . . . . . 3 . 2 . 1 . 7 Kicked 3 | . . . . . . . . 1 . . . . . . 1 . 1 . . . . Crushed . | . . . . . . . . . . . . . . . . . . . . . . Highest Temperature 489 | . 182 363 . 27 212 97 266 113 33 25 349 72 34 26 271 242 261 311 116 344 489 Average Temperature 83 | . 59 111 . 11 48 23 95 50 9 9 74 17 12 19 68 52 75 91 32 131 112 Received Heat Transfer 7585 | . 324 126 . 135 261 45 351 . 62 135 501 450 300 351 334 173 372 1297 498 738 1132 Effects 25 | . . 3 . . . . . . . . 5 . . . 4 2 . . . 1 10 Shutdowns 11 | . . 1 . . . . . . . . 1 . . . . . . . . . 9 Energy Bleed 2 | . . . . . . . . . . . . . . . 1 . . . . 1 . Interference 10 | . . 2 . . . . . . . . 3 . . . 3 2 . . . . . Short Circuit 1 | . . . . . . . . . . . . . . . . . . . . . 1 Damage (minor) 1 | . . . . . . . . . . . 1 . . . . . . . . . . Siege Activations 48 | . . . . . . . . . . . . . . . . 1 7 6 3 11 20 Total Turns 1274 | . . . . . . . . . . . . . . . . 31 171 188 106 190 588 Longest Duration 76 | . . . . . . . . . . . . . . . . 31 46 76 58 46 76 Robots Corrupted 17 | . . . . . . . . . . . . . . . . . 3 5 . . 9 Combat Hostiles 17 | . . . . . . . . . . . . . . . . . 3 5 . . 9 Parts Fried 29 | . . . . . . . . . . . . . . . . . 4 8 . 1 16 Impact Corruptions . | . . . . . . . . . . . . . . . . . . . . . . Robots Melted 10 | . . . . . 1 . . . . . 1 3 . . . 1 . . . 2 2 Combat Hostiles 9 | . . . . . 1 . . . . . 1 3 . . . 1 . . . 2 1 Parts Melted 56 | . . . . . 4 . 3 . 1 6 3 9 . . . 8 1 8 . 10 3 Heat Transferred 25102 | . 990 275 . 300 2183 888 1739 74 481 1476 1297 2822 . 148 1032 1293 296 4893 . 3024 1891 Parts Sabotaged 1 | . . . . . . . . . . . . . . . . . . 1 . . . Parts Stolen . | . . . . . . . . . . . . . . . . . . . . . . Parts Stripped . | . . . . . . . . . . . . . . . . . . . . . . Power Chain Reactions 3 | . . . . 1 . . . . . . . . . . 1 . . 1 . . . Missiles Intercepted . | . . . . . . . . . . . . . . . . . . . . . . Alert | -11 -10 -10 -10 -9 -8 -8 -8 -8 -6 -6 -6 -6 -5 -5 -4 -4 -3 -3 -2 -2 -1 ------- Run | Scr Mat Min Exi Min Mat Sto Gar Rec Fac Gar Fac Gar Fac Gar Fac Gar Res Arm Res Gar Acc Peak Influence 1622 | . 256 65 . 162 266 484 808 473 1049 1284 693 807 547 691 385 521 852 1191 656 1495 1622 Initial 930 | . . . . . . 32 197 363 930 744 674 226 423 128 362 196 292 447 624 313 896 Average 485 | . 86 25 . 52 94 199 590 248 971 1174 438 519 295 406 146 326 454 661 521 755 886 Maximum Alert Level 5 | . 1 . . . 1 2 3 2 3 4 2 3 2 2 1 2 3 4 2 4 5 Low Security (%) 21 | . 79 100 . 100 93 58 8 53 . . . . 26 18 72 2 17 . . . . Level 1 26 | . 20 . . . 6 28 21 27 . . 46 41 51 44 27 67 34 . 1 9 15 Level 2 26 | . . . . . . 13 25 18 . . 52 32 21 36 . 29 22 62 98 40 13 Level 3 17 | . . . . . . . 45 . 100 14 . 25 . . . . 25 32 . 35 45 Level 4 5 | . . . . . . . . . . 85 . . . . . . . 5 . 14 19 Level 5 . | . . . . . . . . . . . . . . . . . . . . . 1 High Security . | . . . . . . . . . . . . . . . . . . . . . 5 Max Security . | . . . . . . . . . . . . . . . . . . . . . . Squads Dispatched 88 | . 2 . . 1 . 2 . . 3 . 4 . 8 . 14 . 14 10 4 . 26 Investigation 4 | . 1 . . . . . . . . . . . . . 1 . 1 . . . 1 Extermination 25 | . . . . . . . . . . . 1 . 2 . 4 . 6 4 2 . 6 Reinforcement 24 | . 1 . . 1 . . . . 1 . 2 . 5 . 3 . 4 1 . . 6 Assault 25 | . . . . . . . . . 1 . 1 . . . 2 . 2 5 1 . 13 Garrison 10 | . . . . . . 2 . . 1 . . . 1 . 4 . 1 . 1 . . Intercept . | . . . . . . . . . . . . . . . . . . . . . . Construction Impeded 3 | . . . . 1 . . . . . . . . . . 1 . . . . . 1 Haulers Reinforced 6 | . . . . . . . . . 1 . 1 . . . 1 . 2 . . . 1 Active Scanning Responses . | . . . . . . . . . . . . . . . . . . . . . . Cargo Convoy Interrupts 2 | . . . . . . . . . . . . . 1 . 1 . . . . . . Stealth | -11 -10 -10 -10 -9 -8 -8 -8 -8 -6 -6 -6 -6 -5 -5 -4 -4 -3 -3 -2 -2 -1 --------- Run | Scr Mat Min Exi Min Mat Sto Gar Rec Fac Gar Fac Gar Fac Gar Fac Gar Res Arm Res Gar Acc Distress Signals 31 | . 1 . . . 4 . . . 1 . . . 2 . 3 . 8 7 3 . 2 Communications Jammed 12 | . . . . . . . . . . . 8 . . . . . 4 . . . . Distress Signals 10 | . . . . . . . . . . . 6 . . . . . 4 . . . . Times Spotted 799 | . 14 2 . 16 18 17 19 44 12 21 26 41 33 28 46 29 91 108 31 37 166 Peak Tracking Total 34 | . 4 2 . 4 5 4 4 7 10 11 5 9 11 5 5 3 9 12 14 9 34 Tactical Retreats 67 | . 2 . . . 3 1 . . 1 2 3 2 1 5 1 . 8 12 2 7 17 Traps | -11 -10 -10 -10 -9 -8 -8 -8 -8 -6 -6 -6 -6 -5 -5 -4 -4 -3 -3 -2 -2 -1 ------- Run | Scr Mat Min Exi Min Mat Sto Gar Rec Fac Gar Fac Gar Fac Gar Fac Gar Res Arm Res Gar Acc Traps Triggered 48 | . 1 . . . 1 2 4 . . 3 1 7 4 12 2 2 5 . . 1 3 Indirectly . | . . . . . . . . . . . . . . . . . . . . . . Trap Hack Attempts . | . . . . . . . . . . . . . . . . . . . . . . Triggered . | . . . . . . . . . . . . . . . . . . . . . . Disarmed . | . . . . . . . . . . . . . . . . . . . . . . Reprogrammed . | . . . . . . . . . . . . . . . . . . . . . . Reused . | . . . . . . . . . . . . . . . . . . . . . . Traps Extracted . | . . . . . . . . . . . . . . . . . . . . . . Installed . | . . . . . . . . . . . . . . . . . . . . . . Triggered 2 | . . . . . . . . . . . . . . . 1 . . 1 . . . Machines | -11 -10 -10 -10 -9 -8 -8 -8 -8 -6 -6 -6 -6 -5 -5 -4 -4 -3 -3 -2 -2 -1 ---------- Run | Scr Mat Min Exi Min Mat Sto Gar Rec Fac Gar Fac Gar Fac Gar Fac Gar Res Arm Res Gar Acc Machines Disabled 65 | . . . . . . 3 4 . . 2 7 4 3 4 6 5 4 7 1 8 7 Max in Single Turn 6 | . . . . . . 1 1 . . 1 6 1 2 1 1 1 1 1 1 2 2 Garrison Access 5 | . . . . . . . . . . . . . . . 2 . 1 . . . 2 Garrison Relay 21 | . . . . . . . 4 . . 1 . 4 . 4 . 4 . . . 4 . Phase Generator 1 | . . . . . . . . . . . . . . . . . . . . 1 . Energy Cycler 2 | . . . . . . . . . . . . . . . . . . 1 . . 1 Machines Sabotaged . | . . . . . . . . . . . . . . . . . . . . . . Garrisons Compromised 1 | . . . . . . . . . . . . . . . 1 . . . . . . Overloaded Fab Kills . | . . . . . . . . . . . . . . . . . . . . . . Hacking | -11 -10 -10 -10 -9 -8 -8 -8 -8 -6 -6 -6 -6 -5 -5 -4 -4 -3 -3 -2 -2 -1 --------- Run | Scr Mat Min Exi Min Mat Sto Gar Rec Fac Gar Fac Gar Fac Gar Fac Gar Res Arm Res Gar Acc Machines Accessed 48 | . 3 2 3 1 2 6 . 4 2 . 4 . 2 . 4 . 5 . 3 . 7 Terminals 31 | . 3 1 . 1 2 5 . 4 . . 2 . 1 . 2 . 4 . 2 . 4 Fabricators 3 | . . . . . . . . . 1 . . . . . 1 . . . . . 1 Repair Stations . | . . . . . . . . . . . . . . . . . . . . . . Recycling Units 1 | . . . . . . . . . . . 1 . . . . . . . . . . Scanalyzers . | . . . . . . . . . . . . . . . . . . . . . . Garrison Access 9 | . . . . . . 1 . . 1 . 1 . 1 . 1 . 1 . 1 . 2 Total Hacks 95 | . 5 2 18 1 7 15 . 6 3 . 7 . 3 . 8 . 9 . 3 . 8 Successful 51 | . 3 2 18 . 1 6 . 2 3 . 5 . 2 . 2 . 2 . 1 . 4 Failed 44 | . 2 . . 1 6 9 . 4 . . 2 . 1 . 6 . 7 . 2 . 4 Catastrophic 11 | . . . . . . 4 . 2 . . . . 1 . . . 2 . 1 . 1 Database Lockouts . | . . . . . . . . . . . . . . . . . . . . . . Manual 22 | . 2 . . 1 . 6 . 3 . . . . 2 . 4 . 3 . 1 . . Terminals 59 | . 5 1 . 1 7 13 . 6 . . 4 . 2 . 6 . 8 . 2 . 4 Fabricators 4 | . . . . . . . . . 2 . . . . . 1 . . . . . 1 Repair Stations . | . . . . . . . . . . . . . . . . . . . . . . Recycling Units 2 | . . . . . . . . . . . 2 . . . . . . . . . . Scanalyzers . | . . . . . . . . . . . . . . . . . . . . . . Garrison Access 11 | . . . . . . 2 . . 1 . 1 . 1 . 1 . 1 . 1 . 3 Terminal Hacks 32 | . 2 2 18 . 1 4 . 1 . . 3 . . . . . . . . . 1 Record 18 | . . . 18 . . . . . . . . . . . . . . . . . . Part Schematic 1 | . . . . . . 1 . . . . . . . . . . . . . . . Open Door 2 | . . 1 . . . 1 . . . . . . . . . . . . . . . Open DSF 1 | . . . . . . . . . . . 1 . . . . . . . . . . Branch Access Points 2 | . 1 . . . . . . . . . . . . . . . . . . . 1 Unreport Threat 6 | . 1 . . . 1 1 . 1 . . 2 . . . . . . . . . . Locate Traps 1 | . . . . . . 1 . . . . . . . . . . . . . . . Dispatch Records 1 | . . 1 . . . . . . . . . . . . . . . . . . . Fabricator Hacks 2 | . . . . . . . . . 2 . . . . . . . . . . . . Load Schematic 1 | . . . . . . . . . 1 . . . . . . . . . . . . Build 1 | . . . . . . . . . 1 . . . . . . . . . . . . Repair Station Hacks . | . . . . . . . . . . . . . . . . . . . . . . Recycling Unit Hacks 1 | . . . . . . . . . . . 1 . . . . . . . . . . Retrieve Components 1 | . . . . . . . . . . . 1 . . . . . . . . . . Scanalyzer . | . . . . . . . . . . . . . . . . . . . . . . Garrison Access Hacks 10 | . . . . . . 1 . . 1 . 1 . 1 . 1 . 1 . 1 . 3 Unlock Access 6 | . . . . . . 1 . . 1 . 1 . 1 . 1 . . . 1 . . Seal Access 3 | . . . . . . . . . . . . . . . . . 1 . . . 2 Coupler Status 1 | . . . . . . . . . . . . . . . . . . . . . 1 Unauthorized Hacks 6 | . 1 . . . . 1 . 1 . . . . 1 . 1 . 1 . . . . Terminals 6 | . 1 . . . . 1 . 1 . . . . 1 . 1 . 1 . . . . Assimilate 1 | . 1 . . . . . . . . . . . . . . . . . . . . Botnet 5 | . . . . . . 1 . 1 . . . . 1 . 1 . 1 . . . . Fabricators . | . . . . . . . . . . . . . . . . . . . . . . Repair Stations . | . . . . . . . . . . . . . . . . . . . . . . Recycling Units . | . . . . . . . . . . . . . . . . . . . . . . Scanalyzers . | . . . . . . . . . . . . . . . . . . . . . . Garrison Access . | . . . . . . . . . . . . . . . . . . . . . . Data Cores Recovered . | . . . . . . . . . . . . . . . . . . . . . . Used . | . . . . . . . . . . . . . . . . . . . . . . Hacking Detections 33 | . 1 . . 1 2 6 . 3 1 . 1 . 1 . 4 . 4 . 3 . 6 Full Trace Events 3 | . . . . . 1 . . . . . . . . . 1 . . . . . 1 Feedback Events 1 | . . . . . . . . . . . . . . . . . . . . . 1 Corruption 1 | . . . . . . . . . . . . . . . . . . . . . 1 Feedback Blocked . | . . . . . . . . . . . . . . . . . . . . . . Robot Schematics Acquired . | . . . . . . . . . . . . . . . . . . . . . . Robots Built . | . . . . . . . . . . . . . . . . . . . . . . Authchips . | . . . . . . . . . . . . . . . . . . . . . . Time . | . . . . . . . . . . . . . . . . . . . . . . Total Robot Build Rating . | . . . . . . . . . . . . . . . . . . . . . . Part Schematics Acquired 1 | . . . . . . 1 . . . . . . . . . . . . . . . Parts Built 2 | . . . . . . . . . 2 . . . . . . . . . . . . Authchips 1 | . . . . . . . . . 1 . . . . . . . . . . . . Time 31 | . . . . . . . . . 31 . . . . . . . . . . . . Total Part Build Rating 10 | . . . . . . . . . 10 . . . . . . . . . . . . Parts Repaired . | . . . . . . . . . . . . . . . . . . . . . . Time . | . . . . . . . . . . . . . . . . . . . . . . Parts Recycled . | . . . . . . . . . . . . . . . . . . . . . . Recycled Matter . | . . . . . . . . . . . . . . . . . . . . . . Retrieved Matter . | . . . . . . . . . . . . . . . . . . . . . . Retrieved Components . | . . . . . . . . . . . . . . . . . . . . . . Parts Scanalyzed . | . . . . . . . . . . . . . . . . . . . . . . Part Schematics Acquired . | . . . . . . . . . . . . . . . . . . . . . . Parts Damaged . | . . . . . . . . . . . . . . . . . . . . . . Bothacking | -11 -10 -10 -10 -9 -8 -8 -8 -8 -6 -6 -6 -6 -5 -5 -4 -4 -3 -3 -2 -2 -1 ------------ Run | Scr Mat Min Exi Min Mat Sto Gar Rec Fac Gar Fac Gar Fac Gar Fac Gar Res Arm Res Gar Acc Used RIF Installer 6 | . . . . . . . 1 . . 1 . 1 . 1 . 1 . . . 1 . Zone Cloak 1 | . . . . . . . . . . 1 . . . . . . . . . . . Robot Detection 1 | . . . . . . . . . . . . 1 . . . . . . . . . Patrol Navigation 1 | . . . . . . . . . . . . . . . . 1 . . . . . Structural Interface 1 | . . . . . . . . . . . . . . 1 . . . . . . . Program Shield 1 | . . . . . . . . . . . . . . . . . . . . 1 . Robots Hacked 138 | . . . . . . . . . . . . 19 17 5 21 10 34 8 1 4 19 Non-combat 29 | . . . . . . . . . . . . . 6 . 5 . 14 . 1 . 3 Combat 109 | . . . . . . . . . . . . 19 11 5 16 10 20 8 . 4 16 Robot Hacks Applied 163 | . . . . . . . . . . . . 19 18 6 25 15 43 9 1 4 23 parse_system 8 | . . . . . . . . . . . . 1 1 . 1 1 2 1 . . 1 no_distress 8 | . . . . . . . . . . . . . 1 . 2 . 3 . 1 . 1 ignore_repairs 3 | . . . . . . . . . . . . . 1 . 1 . 1 . . . . map_walls 2 | . . . . . . . . . . . . . . . 1 . 1 . . . . drop_inventory 3 | . . . . . . . . . . . . . . . 2 . 1 . . . . find_recycling 1 | . . . . . . . . . . . . . . . . . 1 . . . . ignore_parts 8 | . . . . . . . . . . . . . 2 . . . 6 . . . . purge_threat 3 | . . . . . . . . . . . . . . . . . . . . . 3 block_reporting 3 | . . . . . . . . . . . . . . . . . 1 . . . 2 map_route 4 | . . . . . . . . . . . . . 1 . . . 3 . . . . find_garrison 3 | . . . . . . . . . . . . . 1 . 2 . . . . . . scatter_targeting 1 | . . . . . . . . . . . . . . . . . . 1 . . . amplify_resonance 6 | . . . . . . . . . . . . 1 . 1 . . 1 . . . 3 wipe_record 1 | . . . . . . . . . . . . . . . 1 . . . . . . reboot_system 7 | . . . . . . . . . . . . 1 2 1 2 . 1 . . . . overwrite_iff 72 | . . . . . . . . . . . . 11 6 2 8 12 13 5 . 4 11 formatsys_low 1 | . . . . . . . . . . . . . . . . . 1 . . . . formatsys_high 29 | . . . . . . . . . . . . 5 3 2 5 2 8 2 . . 2 Relay Couplers Released 94 | . . . . . . . 12 . . 3 3 19 . 16 3 16 3 . . 16 3 Machine Destruction 82 | . . . . . . . 12 . . 3 . 19 . 16 . 16 . . . 16 . Programmers 12 | . . . . . . . . . . . 3 . . . 3 . 3 . . . 3 Attached 60 | . . . . . . . . . . 1 . 9 6 4 7 7 11 3 . 5 7 Robots Rewired 17 | . . . . . . . . 7 . . . 6 . . . . . 3 . . 1 Allies Hacked 1 | . . . . . . . . . . . . . . . . . . 1 . . . Hacks Repelled . | . . . . . . . . . . . . . . . . . . . . . . Allies | -11 -10 -10 -10 -9 -8 -8 -8 -8 -6 -6 -6 -6 -5 -5 -4 -4 -3 -3 -2 -2 -1 -------- Run | Scr Mat Min Exi Min Mat Sto Gar Rec Fac Gar Fac Gar Fac Gar Fac Gar Res Arm Res Gar Acc Total Allies 119 | . 1 . . 3 . . . 7 . . . 22 12 4 12 10 20 10 . 4 14 Largest Group 8 | . 1 1 1 3 . . . 7 5 . . 6 8 2 2 1 4 7 . 2 1 Highest-Rated Group 417 | . 10 10 10 40 . . . 124 98 . . 176 251 98 172 58 239 417 . 60 69 Highest-Rated Ally 129 | . 10 10 10 16 . . . 27 27 . . 47 129 49 116 58 64 68 . 30 69 Total Orders 20 | . . . . . . . . . . . . . 3 2 6 1 7 1 . . . STAY 13 | . . . . . . . . . . . . . 2 1 3 1 5 1 . . . FOLLOW 6 | . . . . . . . . . . . . . 1 1 3 . 1 . . . . EXPLORE 1 | . . . . . . . . . . . . . . . . . 1 . . . . Ally Attacks 438 | . . . . 8 . . . 60 . . . 64 63 16 52 22 63 43 . 9 38 Total Damage 11003 | . . . . 83 . . . 343 . . . 1218 1834 418 1677 710 1793 1444 . 111 1372 Kills 61 | . . . . 4 . . . 6 . . . 10 11 4 11 1 10 3 . 1 . Allies Corrupted 3 | . . . . . . . . . . . . . 1 . . . 1 1 . . . Allies Melted 1 | . . . . . . . . . . . . . . . . . . . . . 1 Intel | -11 -10 -10 -10 -9 -8 -8 -8 -8 -6 -6 -6 -6 -5 -5 -4 -4 -3 -3 -2 -2 -1 ------- Run | Scr Mat Min Exi Min Mat Sto Gar Rec Fac Gar Fac Gar Fac Gar Fac Gar Res Arm Res Gar Acc Robot Analysis Total . | . . . . . . . . . . . . . . . . . . . . . . Derelict Logs Recovered 2 | . . . . 2 . . . . . . . . . . . . . . . . . Drone Launches 17 | . . . . . . . . . . . . . . . . . 17 . . . . Drone Recoveries 9 | . . . . . . . . . . . . . . . . . 9 . . . . Exploration | -11 -10 -10 -10 -9 -8 -8 -8 -8 -6 -6 -6 -6 -5 -5 -4 -4 -3 -3 -2 -2 -1 ------------- Run | Scr Mat Min Exi Min Mat Sto Gar Rec Fac Gar Fac Gar Fac Gar Fac Gar Res Arm Res Gar Acc Turns Passed 36195 | . 643 893 821 835 523 420 1545 935 397 941 2059 2276 1833 1734 3395 2561 4183 2310 1633 1648 4610 Spaces Moved 16098 | 1 325 515 514 573 245 222 859 422 230 411 499 1364 994 686 1383 961 1908 904 676 601 1805 Core 63 | . . . . . . . . . . . . . . . . . . 40 . . 23 Treads 6686 | . 187 515 514 75 . . . . . . 9 . . . 539 435 1019 474 536 601 1782 Legs 7885 | 1 12 . . . 245 222 859 422 230 411 236 1364 994 686 650 195 889 329 140 . . Wheels 1403 | . 126 . . 498 . . . . . . 254 . . . 194 331 . . . . . Hover . | . . . . . . . . . . . . . . . . . . . . . . Flight 61 | . . . . . . . . . . . . . . . . . . 61 . . . Fastest Speed 45 | 120 110 160 160 115 120 120 120 192 122 124 110 120 112 184 115 120 120 45 155 155 50 Average Speed 152 | 120 140 160 160 127 120 120 149 192 135 181 160 130 146 187 172 145 145 140 162 158 159 Slowest Speed 540 | 120 160 160 160 160 190 120 192 192 194 194 540 190 188 188 320 240 190 250 240 160 250 Overloaded Moves . | . . . . . . . . . . . . . . . . . . . . . . Propulsion Burnouts . | . . . . . . . . . . . . . . . . . . . . . . Robots Hopped . | . . . . . . . . . . . . . . . . . . . . . . Cave-ins Triggered . | . . . . . . . . . . . . . . . . . . . . . . Exploration Rate (%) 54 | 1 59 85 88 99 27 37 70 95 7 67 15 84 24 88 32 93 42 33 16 94 42 Regions Visited 21 Branch Regions 6 Pre-discovered Areas 2 | . . . 1 1 . . . . . . . . . . . . . . . . . Known Exits Taken 10 | . 1 . . . 1 1 . . 1 . 1 . 1 . 1 . 1 1 1 . . Unknown Exits Taken 5 | 1 . 1 1 1 . . . 1 . . . . . . . . . . . . . Scrap Searched 3 | . . 1 . 2 . . . . . . . . . . . . . . . . . Spaces Dug 158 | . 3 . . . . . . . 1 . 10 20 18 4 25 . 19 3 12 27 16 Terrain Destroyed 970 | . 3 1 . 77 . 36 51 . 2 41 116 51 63 10 78 9 30 110 12 194 86 Melee 56 | . . . . . . . . . 1 . 10 . 13 . 6 . 13 2 8 . 3 Projectile 167 | . 3 1 . . . . . . . . . . . 8 36 9 16 17 4 20 53 AOE 726 | . . . . 77 . 36 51 . . 41 100 50 48 . 36 . . 90 . 172 25 Terrain Rammed . | . . . . . . . . . . . . . . . . . . . . . . Walls Destroyed . | . . . . . . . . . . . . . . . . . . . . . . Machines Disabled . | . . . . . . . . . . . . . . . . . . . . . . Actions | -11 -10 -10 -10 -9 -8 -8 -8 -8 -6 -6 -6 -6 -5 -5 -4 -4 -3 -3 -2 -2 -1 --------- Run | Scr Mat Min Exi Min Mat Sto Gar Rec Fac Gar Fac Gar Fac Gar Fac Gar Res Arm Res Gar Acc Total 24623 | . 432 548 513 637 388 333 1040 546 287 530 1587 1717 1260 999 2199 1976 2927 1572 1052 1078 3002 Wait 4814 | . 30 8 . 20 63 53 69 50 17 37 940 119 112 116 505 749 499 230 225 275 697 Move 16082 | . 324 514 513 572 244 222 858 421 229 410 499 1363 994 685 1383 960 1907 903 676 600 1805 Hop . | . . . . . . . . . . . . . . . . . . . . . . Pick Up 357 | . 14 2 . 6 13 9 16 4 6 8 9 16 23 18 25 35 41 41 16 31 24 Fast Attach 253 | . 5 1 . 3 3 3 2 2 3 6 15 10 10 4 27 26 32 47 16 13 25 Attach 238 | . 3 1 . 3 7 2 5 . 6 5 2 9 10 12 33 18 25 41 5 21 30 Detach 71 | . 1 1 . . 1 . 1 . . . 4 3 1 2 14 10 10 5 4 4 10 Swap 347 | . 6 1 . 5 4 6 12 2 3 7 6 35 21 15 31 28 66 25 13 9 52 Drop 306 | . 6 2 . 6 9 12 6 7 8 3 13 24 4 8 17 40 45 28 18 13 37 Fire 1812 | . 43 18 . 22 44 26 51 2 13 38 81 117 60 81 155 104 269 248 49 112 279 Melee 121 | . . . . . . . . . 2 1 10 4 21 3 6 3 27 4 29 . 11 Ram . | . . . . . . . . . . . . . . . . . . . . . . Kick 3 | . . . . . . . . 1 . . . . . . 1 . 1 . . . . Crush 11 | . . . . . . . . . . . . . . . 2 . 1 . 1 . 7 Escape Stasis 141 | . . . . . . . 20 . . 15 8 12 4 55 . 2 . . . . 25 Rewire 63 | . . . . . . . . 57 . . . 5 . . . 1 . . . . . Trap . | . . . . . . . . . . . . . . . . . . . . . . Miscellaneous 4 | . . . . . . . . . . . . . . . . . 4 . . . . Route ------- -11/Scrapyard -10/Materials (discovered 4 exits: [*Mat x2] / *Min x2) -10/Mines (discovered 3 exits: [*Mat x2] / *Exi) -10/Exiles (discovered 2 exits: *Min x2) -9/Mines (discovered 2 exits: *Mat x2) -8/Materials (discovered 2 exits: *Sto x2) -8/Storage -8/Garrison (discovered 2 exits: *Rec x2) -8/Recycling -6/Factory -6/Garrison (discovered 2 exits: *Fac x2) -6/Factory (discovered 2 exits: [*Low] / Gar) -6/Garrison (discovered 3 exits: *Fac x3) -5/Factory (discovered 3 exits: *Fac / [*Ext] / Gar) -5/Garrison (discovered 3 exits: *Fac x3) -4/Factory (discovered 2 exits: [*Upp] / Gar) -4/Garrison (discovered 3 exits: *Res x3) -3/Research (discovered 3 exits: *Res x2 / *Arm) -3/Armory -2/Research (discovered 2 exits: *Acc / Gar) -2/Garrison (discovered 3 exits: *Acc x3) -1/Access (discovered 1 exit: Com) History --------- Turn | Location | Event 1 | -11/Scrapyard | Discovered new exit (range 0) 1 | -11/Scrapyard | Entered Materials 1 | -10/Materials | Discovered new exit (range 15) 334 | -10/Materials | Build established: Mutant 374 | -10/Materials | Discovered new exit (range 10) 378 | -10/Materials | Identified exit to Mines 466 | -10/Materials | Discovered new exit (range 3) 644 | -10/Materials | Entered Mines 644 | -10/Mines | Accompanied by 1 ally 668 | -10/Mines | Deemed a non-threat by the Exiles lab entrance 668 | -10/Mines | Discovered new exit (range 5) 907 | -10/Mines | Met a Derelict who couldn't figure out how to use a Trap Extractor 1097 | -10/Mines | Discovered new exit (range 9) 1151 | -10/Mines | Discovered new exit (range 10) 1269 | -10/Mines | Received a Rocket Launcher from a helpful Derelict 1537 | -10/Mines | Entered Exiles 1537 | -10/Exiles | Accompanied by 1 ally 1558 | -10/Exiles | Discovered new exit (range 15) 1581 | -10/Exiles | Met 8R-AWN 1603 | -10/Exiles | Met EX-HEX 1681 | -10/Exiles | Met EX-DEC 1718 | -10/Exiles | Visited The Gauntlet 1883 | -10/Exiles | Learned location of Zion (-6) 1941 | -10/Exiles | Met EX-BIN 2043 | -10/Exiles | Discovered new exit (range 14) 2358 | -10/Exiles | Entered Mines 2358 | -9/Mines | Accompanied by 1 ally 2515 | -9/Mines | Assisted by bots powering up and referring to "LRC-V3" 2550 | -9/Mines | Learned location of Recycling (-8) 2582 | -9/Mines | Discovered new exit (range 13) 2583 | -9/Mines | Found a hidden stash of uninstalled traps 2707 | -9/Mines | Core integrity fell below 50% 2742 | -9/Mines | Joined a pair of Derelicts in attacking an 0b10 outpost 3075 | -9/Mines | Discovered new exit (range 11) 3076 | -9/Mines | Build established: Scavenger-Mutant 3106 | -9/Mines | Learned location of 1 exit from Materials 3193 | -9/Mines | Entered Materials 3193 | -8/Materials | Evolved 4 slots: Propulsion x2, Utility x2 3194 | -8/Materials | Identified exit to Storage 3218 | -8/Materials | Discovered exit to Storage (range 16) 3716 | -8/Materials | Entered Storage 3972 | -8/Storage | Garrison activated, responded to threat 4136 | -8/Storage | Identified exit to Garrison 4136 | -8/Storage | Entered Garrison 4194 | -8/Garrison | Triggered checkpoint 4367 | -8/Garrison | Triggered checkpoint 4394 | -8/Garrison | Discovered new exit (range 14) 4421 | -8/Garrison | Installed Relay Interface Framework 4489 | -8/Garrison | Triggered checkpoint 4528 | -8/Garrison | Garrison Relay disabled 4639 | -8/Garrison | Triggered checkpoint 4679 | -8/Garrison | Garrison Relay disabled 4813 | -8/Garrison | Triggered checkpoint 4825 | -8/Garrison | Garrison Relay disabled 4854 | -8/Garrison | Discovered new exit (range 10) 4880 | -8/Garrison | Triggered checkpoint 4935 | -8/Garrison | Lost 3 parts (2n1u) 4980 | -8/Garrison | Triggered checkpoint 4997 | -8/Garrison | Garrison Relay disabled 5681 | -8/Garrison | Entered Recycling 5689 | -8/Recycling | Spotter reported a threat 5732 | -8/Recycling | Spotter reported a threat 5751 | -8/Recycling | Spotter reported a threat 5774 | -8/Recycling | Spotter reported a threat 5774 | -8/Recycling | Spotter reported a threat 5785 | -8/Recycling | Spotter reported a threat 5803 | -8/Recycling | Spotter reported a threat 5829 | -8/Recycling | Spotter reported a threat 5838 | -8/Recycling | Spotter reported a threat 5894 | -8/Recycling | Spotter reported a threat 5903 | -8/Recycling | Spotter reported a threat 5909 | -8/Recycling | Spotter reported a threat 5918 | -8/Recycling | Spotter reported a threat 5926 | -8/Recycling | Spotter reported a threat 5927 | -8/Recycling | Spotter reported a threat 5962 | -8/Recycling | Spotter reported a threat 5969 | -8/Recycling | Spotter reported a threat 5971 | -8/Recycling | Spotter reported a threat 5976 | -8/Recycling | Spotter reported a threat 5979 | -8/Recycling | Spotter reported a threat 5980 | -8/Recycling | Spotter reported a threat 5985 | -8/Recycling | Spotter reported a threat 6015 | -8/Recycling | Spotter reported a threat 6022 | -8/Recycling | Spotter reported a threat 6024 | -8/Recycling | Spotter reported a threat 6029 | -8/Recycling | Spotter reported a threat 6033 | -8/Recycling | Spotter reported a threat 6038 | -8/Recycling | Spotter reported a threat 6075 | -8/Recycling | Spotter reported a threat 6165 | -8/Recycling | Spotter reported a threat 6184 | -8/Recycling | Discovered new exit (range 5) 6193 | -8/Recycling | Spotter reported a threat 6201 | -8/Recycling | Spotter reported a threat 6233 | -8/Recycling | Spotter reported a threat 6237 | -8/Recycling | Spotter reported a threat 6243 | -8/Recycling | Spotter reported a threat 6246 | -8/Recycling | Spotter reported a threat 6249 | -8/Recycling | Spotter reported a threat 6286 | -8/Recycling | Spotter reported a threat 6299 | -8/Recycling | Spotter reported a threat 6304 | -8/Recycling | Spotter reported a threat 6319 | -8/Recycling | Spotter reported a threat 6321 | -8/Recycling | Spotter reported a threat 6321 | -8/Recycling | Spotter reported a threat 6342 | -8/Recycling | Spotter reported a threat 6352 | -8/Recycling | Spotter reported a threat 6364 | -8/Recycling | Spotter reported a threat 6364 | -8/Recycling | Spotter reported a threat 6367 | -8/Recycling | Spotter reported a threat 6373 | -8/Recycling | Spotter reported a threat 6374 | -8/Recycling | Spotter reported a threat 6392 | -8/Recycling | Spotter reported a threat 6395 | -8/Recycling | Spotter reported a threat 6405 | -8/Recycling | Spotter reported a threat 6417 | -8/Recycling | Spotter reported a threat 6417 | -8/Recycling | Spotter reported a threat 6420 | -8/Recycling | Spotter reported a threat 6426 | -8/Recycling | Spotter reported a threat 6430 | -8/Recycling | Spotter reported a threat 6445 | -8/Recycling | Spotter reported a threat 6448 | -8/Recycling | Spotter reported a threat 6470 | -8/Recycling | Spotter reported a threat 6470 | -8/Recycling | Spotter reported a threat 6473 | -8/Recycling | Spotter reported a threat 6484 | -8/Recycling | Spotter reported a threat 6501 | -8/Recycling | Spotter reported a threat 6526 | -8/Recycling | Spotter reported a threat 6537 | -8/Recycling | Spotter reported a threat 6547 | -8/Recycling | Spotter reported a threat 6554 | -8/Recycling | Spotter reported a threat 6579 | -8/Recycling | Spotter reported a threat 6600 | -8/Recycling | Spotter reported a threat 6607 | -8/Recycling | Spotter reported a threat 6613 | -8/Recycling | Spotter reported a threat 6616 | -8/Recycling | Entered Factory 6616 | -6/Factory | Accompanied by 5 allies 6616 | -6/Factory | Evolved 4 slots: Propulsion x1, Utility x3 6675 | -6/Factory | Build established: Commander-Mutant 6892 | -6/Factory | Fabricated Hyp. Gauss Rifle (x2) 6966 | -6/Factory | First assault squad dispatched 6966 | -6/Factory | Identified exit to Garrison 6993 | -6/Factory | Garrison activated, responded to threat 7013 | -6/Factory | Entered Garrison 7138 | -6/Garrison | Triggered checkpoint 7140 | -6/Garrison | Triggered checkpoint 7144 | -6/Garrison | Triggered checkpoint 7194 | -6/Garrison | Destroyed 17 combat bots 7203 | -6/Garrison | Lost 5 parts (4n1w) 7324 | -6/Garrison | Discovered new exit (range 9) 7360 | -6/Garrison | Build established: Scavenger-Mutant 7448 | -6/Garrison | Triggered checkpoint 7487 | -6/Garrison | Lost 4 parts (1p1n2u) 7616 | -6/Garrison | Discovered new exit (range 8) 7639 | -6/Garrison | Expanded RIF knowledge: Zone Cloak 7777 | -6/Garrison | Garrison Relay disabled 7954 | -6/Garrison | Entered Factory 8075 | -6/Factory | Lost 5 parts (3n2u) 8304 | -6/Factory | First assault squad dispatched 8341 | -6/Factory | Found Hvy. Reactive Plating 8478 | -6/Factory | Lost 4 parts (1p3n) 8709 | -6/Factory | Discovered new exit (range 5) 10013 | -6/Factory | Identified exit to Garrison 10013 | -6/Factory | Entered Garrison 10050 | -6/Garrison | Triggered checkpoint 10075 | -6/Garrison | Garrison Relay disabled 10278 | -6/Garrison | Build established: Bothacker-Mutant 10408 | -6/Garrison | Triggered checkpoint 10424 | -6/Garrison | Triggered checkpoint 10432 | -6/Garrison | Core integrity fell below 50% 10556 | -6/Garrison | Triggered checkpoint 10585 | -6/Garrison | Garrison Relay disabled 10613 | -6/Garrison | Discovered new exit (range 10) 10808 | -6/Garrison | Lost 4 parts (2u2w) 10982 | -6/Garrison | Triggered checkpoint 10985 | -6/Garrison | Garrison Relay disabled 11043 | -6/Garrison | Triggered checkpoint 11109 | -6/Garrison | Triggered checkpoint 11165 | -6/Garrison | Discovered new exit (range 15) 11424 | -6/Garrison | Garrison Relay disabled 11448 | -6/Garrison | Triggered checkpoint 11502 | -6/Garrison | Triggered checkpoint 11514 | -6/Garrison | Triggered checkpoint 11699 | -6/Garrison | Triggered checkpoint 11720 | -6/Garrison | Discovered new exit (range 15) 11750 | -6/Garrison | Expanded RIF knowledge: Robot Detection 12289 | -6/Garrison | Entered Factory 12289 | -5/Factory | Accompanied by 6 allies 12289 | -5/Factory | Evolved 2 slots: Utility x2 12614 | -5/Factory | Discovered new exit (range 16) 12714 | -5/Factory | Allied Derelicts emerged from ambush trap array 12853 | -5/Factory | Cargo convoy interrupted 13080 | -5/Factory | Lost 3 parts (1p1n1u) 13645 | -5/Factory | Discovered new exit (range 15) 13710 | -5/Factory | Build established: Scavenger-Mutant 14108 | -5/Factory | Garrison activated, responded to threat 14122 | -5/Factory | Identified exit to Garrison 14122 | -5/Factory | Entered Garrison 14166 | -5/Garrison | Triggered checkpoint 14207 | -5/Garrison | Garrison Relay disabled 14371 | -5/Garrison | Lost 3 parts (2n1u) 14449 | -5/Garrison | Spotted B-75 Beast 14476 | -5/Garrison | Triggered checkpoint 14481 | -5/Garrison | Triggered checkpoint 14672 | -5/Garrison | Triggered checkpoint 14782 | -5/Garrison | Destroyed B-75 Beast 14921 | -5/Garrison | Garrison Relay disabled 14978 | -5/Garrison | Discovered new exit (range 15) 15132 | -5/Garrison | Discovered new exit (range 12) 15204 | -5/Garrison | Triggered checkpoint 15241 | -5/Garrison | Triggered checkpoint 15278 | -5/Garrison | Garrison Relay disabled 15518 | -5/Garrison | Discovered new exit (range 10) 15577 | -5/Garrison | Build established: Bothacker-Mutant 15610 | -5/Garrison | Expanded RIF knowledge: Structural Interface 15772 | -5/Garrison | Triggered checkpoint 15806 | -5/Garrison | Garrison Relay disabled 15856 | -5/Garrison | Entered Factory 15856 | -4/Factory | Evolved 2 slots: Propulsion x1, Utility x1 15910 | -4/Factory | Build established: Botlord-Mutant 16785 | -4/Factory | P-70 Sage assimilated allied Sentinel 7a 16885 | -4/Factory | Lost 13 parts (2p5n3u3w) 17249 | -4/Factory | Lost 4 parts (3n1w) 17493 | -4/Factory | Cargo convoy interrupted 17551 | -4/Factory | Garrison activated, responded to threat 17611 | -4/Factory | System corruption reached 10% 17667 | -4/Factory | Lost 4 parts (1p2n1w) 18154 | -4/Factory | Spotted B-86 Titan 18193 | -4/Factory | Discovered new exit (range 14) 18199 | -4/Factory | Assimilated Titan 7a with formatsys_high 18834 | -4/Factory | Spotted B-86 Titan 18878 | -4/Factory | Spotted Striker 18914 | -4/Factory | Destroyed Striker 18939 | -4/Factory | Core integrity fell below 50% 18959 | -4/Factory | Lost 8 parts (4n3u1w) 19028 | -4/Factory | Lost 5 parts (2n2u1w) 19038 | -4/Factory | Garrison activated, responded to threat 19251 | -4/Factory | Identified exit to Garrison 19251 | -4/Factory | Entered Garrison 19258 | -4/Garrison | Expanded RIF knowledge: Patrol Navigation 19298 | -4/Garrison | Triggered checkpoint 19302 | -4/Garrison | Garrison Relay disabled 19514 | -4/Garrison | Spotted B-86 Titan 19533 | -4/Garrison | Triggered checkpoint 19944 | -4/Garrison | Triggered checkpoint 19972 | -4/Garrison | Triggered checkpoint 20181 | -4/Garrison | Triggered checkpoint 20416 | -4/Garrison | Lost 3 parts (1p1n1w) 20475 | -4/Garrison | Lost 4 parts (2n1u1w) 20537 | -4/Garrison | Destroyed B-86 Titan 20566 | -4/Garrison | Found Hvy. Reflective Plating 20692 | -4/Garrison | Triggered checkpoint 20704 | -4/Garrison | Garrison Relay disabled 20760 | -4/Garrison | Discovered new exit (range 12) 21020 | -4/Garrison | Triggered checkpoint 21055 | -4/Garrison | Garrison Relay disabled 21094 | -4/Garrison | Discovered new exit (range 10) 21410 | -4/Garrison | Triggered checkpoint 21463 | -4/Garrison | Garrison Relay disabled 21780 | -4/Garrison | Triggered checkpoint 21793 | -4/Garrison | Discovered new exit (range 15) 21812 | -4/Garrison | Entered Research 21812 | -3/Research | Evolved 2 slots: Utility x2 22078 | -3/Research | Spotted B-86 Titan 22421 | -3/Research | Discovered new exit (range 8) 22531 | -3/Research | P-80 Master assimilated allied Warden 8a 22627 | -3/Research | Lost 9 parts (1p4n3u1w) 23290 | -3/Research | Discovered new exit (range 14) 23437 | -3/Research | System corruption reached 10% 24812 | -3/Research | First assault squad dispatched 25030 | -3/Research | System corruption reached 30% 25290 | -3/Research | Discovered new exit (range 15) 25390 | -3/Research | Garrison activated, responded to threat 25613 | -3/Research | Identified exit to Research 25988 | -3/Research | Identified exit to Armory 25995 | -3/Research | Entered Armory 25995 | -3/Armory | Accompanied by 3 allies 26245 | -3/Armory | First assault squad dispatched 26491 | -3/Armory | Lost 5 parts (1p2n2u) 26692 | -3/Armory | Lost 5 parts (2n3u) 26943 | -3/Armory | Build established: Bothacker-Mutant 27133 | -3/Armory | Spotted B-86 Titan 27384 | -3/Armory | Released all parts (10) 27389 | -3/Armory | Core integrity fell below 50% 27412 | -3/Armory | Lost 14 parts (4n7u3w) 27584 | -3/Armory | Build established: Scavenger-Mutant 27797 | -3/Armory | Lost 3 parts (1n2u) 27885 | -3/Armory | Lost 3 parts (2n1w) 27921 | -3/Armory | Found Fusion Bomb Launcher 28090 | -3/Armory | Discovered exit to Research (range 8) 28114 | -3/Armory | Lost 6 parts (2n3u1w) 28305 | -3/Armory | Entered Research 28305 | -2/Research | Evolved 2 slots: Power x1, Weapon x1 28441 | -2/Research | Lost 4 parts (1n3u) 28710 | -2/Research | Found Quantum Capacitor 28907 | -2/Research | Found Antimissile System 29087 | -2/Research | Discovered new exit (range 6) 29094 | -2/Research | Identified exit to Access 29427 | -2/Research | Spotted B-90 Cyclops 29805 | -2/Research | First assault squad dispatched 29888 | -2/Research | Garrison activated, responded to threat 29938 | -2/Research | Identified exit to Garrison 29938 | -2/Research | Entered Garrison 29946 | -2/Garrison | Expanded RIF knowledge: Program Shield 29968 | -2/Garrison | Lost 6 parts (1p4u1w) 30008 | -2/Garrison | Triggered checkpoint 30098 | -2/Garrison | Garrison Relay disabled 30197 | -2/Garrison | Spotted B-90 Cyclops 30202 | -2/Garrison | Triggered checkpoint 30248 | -2/Garrison | Triggered checkpoint 30344 | -2/Garrison | Lost 5 parts (1p2n2u) 30657 | -2/Garrison | Destroyed B-90 Cyclops 30700 | -2/Garrison | Discovered exit to Access (range 11) 30855 | -2/Garrison | Garrison Relay disabled 30964 | -2/Garrison | Triggered checkpoint 30976 | -2/Garrison | System corruption reached 10% 31022 | -2/Garrison | Lost 3 parts (3u) 31072 | -2/Garrison | Discovered exit to Access (range 12) 31090 | -2/Garrison | Triggered checkpoint 31171 | -2/Garrison | Garrison Relay disabled 31345 | -2/Garrison | Triggered checkpoint 31370 | -2/Garrison | Destroyed 7 combat bots 31377 | -2/Garrison | Discovered exit to Access (range 12) 31386 | -2/Garrison | Lost 3 parts (1u2w) 31422 | -2/Garrison | Phase Generator disabled 31508 | -2/Garrison | Found Unknown Protection 31508 | -2/Garrison | Identified Adv. Powered Armor 31519 | -2/Garrison | Found Adv. Powered Armor 31522 | -2/Garrison | Found Adv. Powered Armor 31525 | -2/Garrison | Found Adv. Powered Armor 31586 | -2/Garrison | Entered Access 31586 | -1/Access | Evolved 2 slots: Utility x2 32055 | -1/Access | Build established: Botlord-Mutant 32376 | -1/Access | Found Prototype Processor 32376 | -1/Access | Identified Exp. Core Analyzer 32798 | -1/Access | Identified exit to Command 32836 | -1/Access | First assault squad dispatched 33244 | -1/Access | Build established: Botlord-Gunner 35093 | -1/Access | Spotted B-99 Colossus 35457 | -1/Access | Build established: Botlord-Mutant 35756 | -1/Access | Lost 3 parts (1p2u) 35944 | -1/Access | High security lockdown imminent 36007 | -1/Access | Lost 10 parts (3n3u4w) 36024 | -1/Access | High security lockdown engaged 36079 | -1/Access | Spotted Striker 36079 | -1/Access | Spotted Striker 36079 | -1/Access | Spotted Executioner 36150 | -1/Access | Released all parts (10) 36161 | -1/Access | Energy Cycler disabled 36164 | -1/Access | Core integrity fell below 50% 36169 | -1/Access | Spotted Investigator 36171 | -1/Access | Scanned by Researcher 36181 | -1/Access | Lost 11 parts (2p2n5u2w) 36183 | -1/Access | Core integrity fell below 20% 36196 | -1/Access | Destroyed by X-87 Electro with Compact HERF Cannon Last Messages --------------- 36184_ Held in stasis. 36184_ Stasis bubble strength at 116. 36185_ Stasis bubble strength at 110. 36186_ Stasis bubble strength at 104. 36187_ Held in stasis. 36187_ Critical hit (Burn: +17). 36187_ Stasis bubble strength at 98. 36188_ Stasis bubble strength at 92. 36189_ Stasis bubble strength at 86. 36189_ G-73 Enforcer misfires. 36190_ Held in stasis. 36190_ Investigator is analyzing... 36190_ Stasis bubble strength at 80. 36191_ Stasis bubble strength at 74. 36192_ Stasis bubble strength at 68. 36193_ Stasis bubble strength at 62. 36194_ Held in stasis. 36194_ Investigator is analyzing... 36194_ Stasis bubble strength at 56. 36195_ Stasis bubble strength at 50. Map ----- +----------------------------------------------------+ | ??????????????#"" # #??????????? | | ??????????????#"" ! " #??????????? | | ??????????????# # #?????????? | | ??????????????# #### ##### #???????????? | | ????>?????????#########??# #???# ??????????? ? | | ?????????????????????????# #???#"#????????? " " ? | | ?????????????????????????# #???# ??????? " " ? | | ??????????????????????####+###?#"###### ""G"?? | | ??????????????????????# #?#=%! + | | ??????????????????????# #?#[###### | | ??????????????????????# ### #???????####+#### | | ??????????????????????# # # ####?????? ??? | | ??????????????????????# # ####??? ??? | | ????#""#??#######?????# l "" #??? !??? | | ????# T### ###???# | "" #??? ### | | ????# ##"""""""""##### "" #???# ## | | ????# ## # T #???# ## | | ????# #" # "" #???# ## | | ????# #" # "" #???# ## | | ????# #" # "" #???# ## | | ????# ## # ! # = ! #???# ## | | ##### #" # ## #??## ## | | !%!! ! #"""""""""""#####i#########+####### # | | !!==/ ! bE g gggl "%"%" = # | | !%!!% % H lKKcb " " + | | #### ##########+######@######## ####### % # | | ???######??????? ?? ?????# ########+### | | ?????????????? ! !# ???# ## == ##+ | | ???????????? "" #!!!k k ?# ## ## | | ?????????? "" #!!! i ## ## ## | | ?????????# """" #!!! ## ## ## | | ?????????# """" # ## ## ## | | ?????????# ? """" # ## ## ## | | ??????????????""" # ## ####+######## | | ???????????????"" # ! ## # # | | ???????????????? # ## # # | | ???????????????? = #######x####? # # | | ???????????????? #?????? ???? # # | | ???????????????? #?????? ???? # # | | ????????????????######???????#??????# # | | ????????????????????????????????????# + | | ????????????????????????????????????# * "" # | | ????????????????????????????????????# "" / | | ????????????????????????????????????# """""" ## | | ????????????????????????????????????# """""" # | | ????????????????????????????????????# ! "" # | | ????????????????????????????????????# "" # | | ????????????????????????????????????############# | | ????????????????????????????????????????????????# | | ????????????????????????????????????????????????# | +----------------------------------------------------+ Best States ------------- Heat Dissipation 125 Energy Generation 66 Energy Capacity 950 Matter Stores 300 Matter Capacity 450 Sight Range 22 Robot Scan Range 16 Terrain Scan Range 20 Terrain Scan Density 210 Jamming Range 16 Cloak Strength 2 Power Amplification 40 Base Temperature (-) 200 EM Shielding 3 Corruption Prevention 20 Armor Coverage 2400 Resistance: KI 40 Resistance: TH 30 Resistance: EM 25 Core Shielding 30 Propulsion Shielding 33 Phase Shifting 10 Evasion (%) 61 Targeting Accuracy 6 Melee Accuracy 6 Target Analysis 8 Core Analysis 10 Armor Integrity Analysis 20 Recoil Reduction 6 Matter Filtering 30 Energy Filtering 50 Kinecelleration 40 Relay Coupler Types 7 Relay Coupler Value 157 Authchip Count 1 Item Schematics ----------------- Hyp. Gauss Rifle | -8/Storage | Hacked Robot Schematics ------------------ None Fabricated ------------ Hyp. Gauss Rifle | x2 | -6/Factory | Authchip Alien Tech Used ----------------- None Achievements -------------- Preemptive Strike Z1$+NX3F=JRE3_ZNQR Challenges ------------ None Game ------ Seed ShadeExplosiveComputer Manual? 0 Play Time 08:39:01 Cumulative 184.0 hours Start 2022.01.30 @ 08:52:52 End 2022.02.07 @ 10:15:06 Sessions 9 Manual Loads 0 Difficulty Rogue Special Mode None Game No. 62 Rogue 62 Adventurer 0 Explorer 0 Win Type - Total 4 Types 4/0/0/0/0/0/0/0/0 Lore% 53 Gallery% 65 Achievement% 47 Wizard Run 0 Options --------- ASCII 0 Keyboard 1 Movement Vi Keybinds 0 Fullscreen 1 Font 18/SmallcapsGlow Map View 76x50 Tactical HUD 1 Map Filters NONE Filters NONE Steam 1 RUN: af81cd03-13be-4c89-809c-9117ac0d06b9